Cogmind - Beta 13 @@@ ROGUE MODE // 2024.03.30 @ 23:39:58 Player: tryhrdsnphrd Result: Destroyed by HL-V4J(R) with Subdweller Beam Cannon Performance ------------- Evolutions (0) 0 Regions Visited (3) 600 Robots Destroyed (20) 100 Value Destroyed (309) 309 Prototype IDs (3) 60 Alien Tech Used (0) 0 Bonus (-24) -24 TOTAL SCORE: 1045 Bonus ------- Friendly Fire -24 Cogmind --------- Core Integrity 0/250 Matter 285/300 Energy 100/100 System Corruption 0% Temperature Warm (130) Movement Core (700) Ox13 Location -10/Subcaves Parts ------- > --- POWER (1) -------- (None) > --- PROPULSION (2) --- (None) > --- UTILITY (2) ------ High-capacity Storage Unit Signal Interpreter > --- WEAPON (2) ------- (None) > --- INVENTORY (20) --- Flight Unit Small Battery (100) Sensor Array Experimental Sensor Array Scrap Shield EM Pulse Gun Assault Rifle Assault Rifle Light Assault Rifle Peak State ------------ > --- POWER ------------ Ion Engine > --- PROPULSION ------- Spiked Treads Flight Unit > --- UTILITY ---------- High-capacity Storage Unit Signal Interpreter > --- WEAPON ----------- Small Laser Battle Cannon > --- INVENTORY -------- Flight Unit Small Battery Sensor Array Experimental Sensor Array Scrap Shield EM Pulse Gun Assault Rifle Assault Rifle Light Assault Rifle [Rating: 11] Favorites ----------- Power Ion Engine Engine Ion Engine Propulsion Flight Unit Treads Spiked Treads Leg Aluminum Leg Flight Unit Flight Unit Utility Signal Interpreter Storage High-capacity Storage Unit Processor Signal Interpreter Weapon Small Laser Energy Gun Small Laser Ballistic Gun Light Assault Rifle Ballistic Cannon Battle Cannon Build | -11 -10 -10 -10 ------- Run | Yrd Mat Min Sub Slots Evolved . | . . . . Power . | . . . . Propulsion . | . . . . Utility . | . . . . Weapon . | . . . . Parts Attached 18 | 5 7 4 2 Power 3 | 1 1 1 . Engine 3 | 1 1 1 . Core . | . . . . Reactor . | . . . . Propulsion 6 | 2 1 2 1 Treads 1 | . . . 1 Leg 3 | 2 1 . . Wheel . | . . . . Hover . | . . . . Flight 2 | . . 2 . Utility 3 | . 3 . . Device . | . . . . Storage 2 | . 2 . . Processor 1 | . 1 . . Hackware . | . . . . Protection . | . . . . Artifact . | . . . . Weapon 6 | 2 2 1 1 Energy Gun 4 | 2 1 1 . Energy Cannon . | . . . . Ballistic Gun 1 | . 1 . . Ballistic Cannon 1 | . . . 1 Launcher . | . . . . Special Weapon . | . . . . Impact Weapon . | . . . . Slashing Weapon . | . . . . Piercing Weapon . | . . . . Special Melee Weapon . | . . . . Unidentified Prototypes . | . . . . Parts Lost 10 | . 1 4 5 Power 3 | . 1 1 1 Propulsion 4 | . . 2 2 Utility . | . . . . Weapon 3 | . . 1 2 Highest Loss Streak 5 | . 1 4 5 To Critical Strikes 1 | . . . 1 Average Slot Usage (%) 94 | . 87 95 99 Engine 13 | . 13 13 13 Treads 1 | . . . 9 Leg 5 | . 27 1 . Flight 20 | . . 25 18 Storage 13 | . 12 14 14 Processor 12 | . 7 14 14 Energy Gun 12 | . 20 10 13 Ballistic Gun 11 | . 4 14 7 Naked Turns . | . . . . Heaviest Build 49 | 5 47 47 49 Greatest Support 20 | 20 20 20 20 Greatest Overweight (x) 15 | . 2 15 5 Average Overweight (x) 3 | . . 4 2 Largest Inventory Capacity 20 | 5 20 20 20 Average Capacity 18 | 5 9 20 20 Most Carried 10 | 2 7 9 10 Average Carried 6 | . 3 6 9 Final Capacity 20 | 5 20 20 20 Final Carried 10 | . 7 6 10 Class Distribution -------------------- 100% | Mutant Dominant Class ---------------- Mutant | -10/Materials Mutant | -10/Mines Mutant | -10/Subcaves Resources | -11 -10 -10 -10 ----------- Run | Yrd Mat Min Sub Matter Collected 393 | 250 78 51 14 Remotely . | . . . . Salvage Created 427 | 44 305 78 . Parts 43 | 2 26 15 . Haulers Intercepted . | . . . . Recyclers Shooed 1 | . 1 . . Parts Field Recycled . | . . . . Retrieved Matter . | . . . . Parts Self-Destructed . | . . . . Prevented . | . . . . Kills | -11 -10 -10 -10 ------- Run | Yrd Mat Min Sub Combat Hostiles Destroyed 15 | 1 8 6 . Guns 15 | 1 8 6 . Classes Destroyed 4 | 1 3 . . Worker 2 | . 2 . . Watcher 3 | . 3 . . Swarmer 11 | . 5 6 . Grunt 4 | 1 3 . . Best Kill Streak 3 | 1 3 3 . Combat Bots Only 3 | 1 2 3 . Max Kills in Single Turn 2 | 1 2 1 . Gunslinging 1 | . 1 . . Exploded . | . . . . Melee . | . . . . Uniques/NPCs Destroyed . | . . . . Combat | -11 -10 -10 -10 -------- Run | Yrd Mat Min Sub Hostile Shots Fired 146 | 3 62 46 35 Missed 39 | 2 17 10 10 Damage Taken 1331 | 12 419 273 627 Core 277 | . 56 100 121 Absorbed by Shields . | . . . . Core Remaining (%) 100 | 100 . . . Volleys Fired 70 | 3 43 14 10 Largest 2 | 2 2 2 2 Hottest 80 | 80 80 60 79 Shots Fired 124 | 6 82 17 19 Gun 118 | 6 82 17 13 Cannon 6 | . . . 6 Launcher . | . . . . Special . | . . . . Kinetic 47 | . 23 14 10 Thermal 77 | 6 59 3 9 Explosive . | . . . . Electromagnetic . | . . . . Robot Hit Streak 8 | 1 6 8 1 Robot Miss Streak 7 | 3 7 2 1 Penetration Max . | . . . . Secondary Targets 2 | . 2 . . Max Gunslinging Chain 1 | . 1 . . Shots Hit Robots 55 | 2 40 12 1 Core Hits 30 | 2 18 8 2 Critical Kills . | . . . . Critical Parts Destroyed . | . . . . Critical Strikes . | . . . . Melee Attacks . | . . . . Impact . | . . . . Slashing . | . . . . Piercing . | . . . . Sneak Attacks . | . . . . Combat Hostiles . | . . . . Follow-up Attacks . | . . . . Damage Inflicted 657 | 31 457 119 50 Guns 618 | 31 457 119 11 Cannons 39 | . . . 39 Explosions . | . . . . Melee . | . . . . Ramming . | . . . . Kinetic 249 | . 126 84 39 Thermal 408 | 31 331 35 11 Explosive . | . . . . Electromagnetic . | . . . . Impact . | . . . . Slashing . | . . . . Piercing . | . . . . Highest Corruption . | . . . . Average Corruption . | . . . . Corruption Purged . | . . . . Corruption Blocked . | . . . . Overload Shots . | . . . . Overflow Damage . | . . . . Projectiles . | . . . . Explosions . | . . . . Melee . | . . . . Knockbacks 1 | . . . 1 Impact . | . . . . Kinetic 1 | . . . 1 Secondary . | . . . . Self-Inflicted Damage . | . . . . Shots . | . . . . Rammed . | . . . . Targets Rammed . | . . . . Kicked . | . . . . Crushed . | . . . . Highest Temperature 234 | 60 126 54 234 Average Temperature 41 | 31 39 30 177 Received Heat Transfer 444 | 6 78 . 360 Siege Activations . | . . . . Robots Corrupted . | . . . . Combat Hostiles . | . . . . Parts Fried . | . . . . Impact Corruptions . | . . . . Robots Melted . | . . . . Combat Hostiles . | . . . . Parts Melted 1 | . 1 . . Heat Transferred 925 | 75 750 75 25 Parts Sabotaged . | . . . . Parts Stolen . | . . . . Parts Stripped . | . . . . Power Chain Reactions . | . . . . Alert | -11 -10 -10 -10 ------- Run | Yrd Mat Min Sub Peak Influence 163 | 20 163 70 . Initial 13 | . 13 1 . Average 21 | 2 79 10 . Maximum Alert Level . | . . . . Low Security (%) 100 | 100 100 100 . Level 1 . | . . . . Level 2 . | . . . . Level 3 . | . . . . Level 4 . | . . . . Level 5 . | . . . . High Security . | . . . . Max Security . | . . . . Squads Dispatched 2 | . 2 . . Investigation 2 | . 2 . . Extermination . | . . . . Reinforcement . | . . . . Assault . | . . . . Garrison . | . . . . Intercept . | . . . . Searches Triggered . | . . . . Construction Impeded . | . . . . Haulers Reinforced . | . . . . Active Scanning Responses . | . . . . Cargo Convoy Interrupts . | . . . . Stealth | -11 -10 -10 -10 --------- Run | Yrd Mat Min Sub Distress Signals . | . . . . Communications Jammed . | . . . . Distress Signals . | . . . . Times Spotted 31 | 1 14 6 10 Peak Tracking Total 7 | 1 3 3 7 Tactical Retreats . | . . . . Traps | -11 -10 -10 -10 ------- Run | Yrd Mat Min Sub Traps Triggered 1 | . 1 . . Indirectly . | . . . . Trap Hack Attempts . | . . . . Triggered . | . . . . Disarmed . | . . . . Reprogrammed . | . . . . Reused . | . . . . Traps Extracted . | . . . . Installed . | . . . . Triggered . | . . . . Machines | -11 -10 -10 -10 ---------- Run | Yrd Mat Min Sub Machines Disabled . | . . . . Max in Single Turn . | . . . . Machines Repaired . | . . . . Machines Dismantled . | . . . . Machines Sabotaged . | . . . . Overloaded Fab Kills . | . . . . Hacking | -11 -10 -10 -10 --------- Run | Yrd Mat Min Sub Machines Accessed 5 | . 5 . . Terminals 5 | . 5 . . Fabricators . | . . . . Repair Stations . | . . . . Recycling Units . | . . . . Scanalyzers . | . . . . Garrison Access . | . . . . Total Hacks 21 | . 21 . . Successful 11 | . 11 . . Failed 10 | . 10 . . Catastrophic 3 | . 3 . . Database Lockouts . | . . . . Manual . | . . . . Terminals 21 | . 21 . . Fabricators . | . . . . Repair Stations . | . . . . Recycling Units . | . . . . Scanalyzers . | . . . . Garrison Access . | . . . . Terminal Hacks 11 | . 11 . . Robot Analysis 1 | . 1 . . Prototype ID Bank 2 | . 2 . . Alert Level 1 | . 1 . . Locate Traps 2 | . 2 . . Dispatch Records 1 | . 1 . . Maintenance Status 1 | . 1 . . Reinforcement Status 1 | . 1 . . Zone Layout 2 | . 2 . . Fabricator Hacks . | . . . . Repair Station Hacks . | . . . . Recycling Unit Hacks . | . . . . Scanalyzer . | . . . . Garrison Access Hacks . | . . . . Unauthorized Hacks . | . . . . Terminals . | . . . . Fabricators . | . . . . Repair Stations . | . . . . Recycling Units . | . . . . Scanalyzers . | . . . . Garrison Access . | . . . . Data Cores Recovered . | . . . . Used . | . . . . Hacking Detections 3 | . 3 . . Full Trace Events 3 | . 3 . . Feedback Events . | . . . . Feedback Blocked . | . . . . Robot Schematics Acquired . | . . . . Robots Built . | . . . . Authchips . | . . . . Time . | . . . . Total Robot Build Rating . | . . . . Part Schematics Acquired . | . . . . Parts Built . | . . . . Authchips . | . . . . Time . | . . . . Total Part Build Rating . | . . . . Parts Repaired . | . . . . Time . | . . . . Parts Recycled . | . . . . Recycled Matter . | . . . . Retrieved Matter . | . . . . Retrieved Components . | . . . . Parts Scanalyzed . | . . . . Part Schematics Acquired . | . . . . Parts Damaged . | . . . . Bothacking | -11 -10 -10 -10 ------------ Run | Yrd Mat Min Sub Used RIF Installer . | . . . . Robots Hacked . | . . . . Non-combat . | . . . . Combat . | . . . . Robot Hacks Applied . | . . . . Relay Couplers Released . | . . . . Fabnet Peak Effective % . | . . . . Robots Rewired . | . . . . Allies Hacked . | . . . . Hacks Repelled . | . . . . Allies | -11 -10 -10 -10 -------- Run | Yrd Mat Min Sub Total Allies 1 | . . 1 . Largest Group 1 | . . 1 . Highest-Rated Group 31 | . . 31 . Highest-Rated Ally 31 | . . 31 . Total Orders . | . . . . Ally Attacks . | . . . . Total Damage . | . . . . Kills . | . . . . Allies Corrupted . | . . . . Allies Melted . | . . . . Intel | -11 -10 -10 -10 ------- Run | Yrd Mat Min Sub Robot Analysis Total 1 | . 1 . . Derelict Logs Recovered 2 | . . 1 1 Drone Launches . | . . . . Drone Recoveries . | . . . . Exploration | -11 -10 -10 -10 ------------- Run | Yrd Mat Min Sub Turns Passed 5943 | 89 859 4159 836 Spaces Moved 1799 | 72 545 972 210 Core 36 | 23 . 13 . Treads 149 | . . . 149 Legs 686 | 49 545 92 . Wheels . | . . . . Hover . | . . . . Flight 928 | . . 867 61 Fastest Speed 50 | 50 120 260 360 Average Speed 317 | 97 131 424 382 Slowest Speed 800 | 120 260 800 437 Overloaded Moves . | . . . . Propulsion Burnouts . | . . . . Robots Hopped . | . . . . Cave-ins Triggered . | . . . . Exploration Rate (%) 47 | 5 78 99 8 Regions Visited 3 Branch Regions 2 Pre-discovered Areas 1 | . . 1 . Known Exits Taken 2 | . 1 1 . Unknown Exits Taken 1 | 1 . . . Scrap Searched 1 | . . 1 . Spaces Dug . | . . . . Terrain Destroyed . | . . . . Melee . | . . . . Projectile . | . . . . AOE . | . . . . Terrain Rammed . | . . . . Walls Destroyed . | . . . . Machines Disabled . | . . . . Actions | -11 -10 -10 -10 --------- Run | Yrd Mat Min Sub Total 1910 | 84 609 992 225 Wait . | . . . . Move 1796 | 71 544 971 210 Hop . | . . . . Pick Up 25 | 5 14 3 3 Fast Attach . | . . . . Attach 15 | 5 6 4 . Detach . | . . . . Swap 3 | . 1 . 2 Drop 1 | . 1 . . Fire 70 | 3 43 14 10 Melee . | . . . . Ram . | . . . . Kick . | . . . . Crush . | . . . . Escape Stasis . | . . . . Rewire . | . . . . Trap . | . . . . Miscellaneous . | . . . . Route ------- -11/Scrapyard -10/Materials (discovered 3 exits: *Mat x2 / *Min) -10/Mines (discovered 3 exits: *Mat x2 / *Sub) -10/Subcaves (discovered 1 exit: Mat) History --------- Turn | Location | Event 2 | -11/Scrapyard | Met Revision 17 67 | -11/Scrapyard | Discovered new exit (range 8) 90 | -11/Scrapyard | Entered Materials 309 | -10/Materials | Build established: Mutant 341 | -10/Materials | Discovered new exit (range 16) 634 | -10/Materials | Discovered new exit (range 16) 652 | -10/Materials | Identified exit to Materials 915 | -10/Materials | Discovered new exit (range 12) 943 | -10/Materials | Identified exit to Mines 949 | -10/Materials | Entered Mines 1087 | -10/Mines | Found a damaged Exp. Sensor Array with a note attached 1098 | -10/Mines | Found Prototype Device 1212 | -10/Mines | Core integrity fell below 50% 1235 | -10/Mines | Lost 4 parts (1p2n1w) 2017 | -10/Mines | Discovered new exit (range 13) 2092 | -10/Mines | Identified exit to Subcaves 2213 | -10/Mines | Received a Mining Laser from a helpful Derelict 3019 | -10/Mines | Discovered exit to Materials (range 8) 3417 | -10/Mines | Discovered exit to Materials (range 8) 5108 | -10/Mines | Entered Subcaves 5175 | -10/Subcaves | Identified exit to Materials 5922 | -10/Subcaves | Ambushed by swarm of Subdwellers 5925 | -10/Subcaves | Ambushed by Subdweller buried in earth 5927 | -10/Subcaves | Ambushed by Subdwellers from Twisted Machinery 5927 | -10/Subcaves | Ambushed by Subdwellers from Twisted Machinery 5934 | -10/Subcaves | Core integrity fell below 20% 5944 | -10/Subcaves | Destroyed by HL-V4J(R) with Subdweller Beam Cannon Last Messages --------------- X6-8VZ(R) emerges from the Twisted Machinery. HV Slug penetrates R6-MMK(R). R6-MMK(R) destroyed. HV Slug penetrates Earth. 1N-3KY(R) emerges from the Twisted Machinery. HL-V4J(R) suffers critical hit (Destroy). X6-8VZ(R) knocked back. Ion Engine destroyed. HV Slug penetrates Wall. CO-ZDL(R) destroyed. Subatomizers dissect the Beamcaster. AR-LUH(h) destroyed. HL-V4J(R) affixes Scrap Shield Fragment to Scrap Shield. Flight Unit destroyed. X6-8VZ(R) affixes Scrap Shield Fragment to Scrap Shield. Critical hit (Meltdown: +270). Battle Cannon destroyed. Spk. Treads destroyed. Map ----- +----------------------------------------------------+ | # # # # # "" ####???????????????? | | ##?## ##### ### ###" ##"##??????????????? | | #?# #??## ## #?## ## ##?????????????? | | ## ##???## " #??# % #?????????????? | | ########"" #??# & #?????????????? | | #### #?####""#?##% ##?????????????? | | ### #?????#"##??# & ##??????????????? | | ## #?????###??## ##???????????????? | | ##????????##""##????????????????? | | ##???????#"""#?????????????????? | | ## ##??????# "#?????????????????? | | #?## ##????##"" ##????????????????? | | #???## ##### ######""" #????????????????? | | #?????# ##???## """ ##???????????????? | | #??????###?????## ##??????????????? | | ???????????????# #### ## #??????????????? | | ???????????????##???### ### #??????????????? | | ??????????????????????###?# #??????????????? | | ???????????????????????##?# ##??????????????? | | ???????????????????????# ## ;##??????????????? | | ???????????????????????# ; ; #??????????????? | | ???????????????????????# ;; ##?????????????? | | ?????????????????????### = #?????????????? | | ?????????????????????# % #?????????????? | | ??????????????????????#; [R ; #?????????????? | | ?????????????????????##; @ % #??????????????? | | ?????????????????????# %* ;#??????????????? | | ?????????????????????# ;#??????????????? | | ????????????????????# ;! ;#??????????????? | | ????????????????????## =%*% ;;;#??????????????? | | ?????????????????????#!%RRRRR###??????????????? | | ????????????????????#;;&;%&%&#????????????????? | | ??????????????????? # %& %;#????????????????? | | ?????????????????? # * ##????????????????? | | ????????????????# # ##"## %#????????????????? | | ???????????????# ?#?## ?# #???????????????? | | ???????????????# ?????? ?? ##???????????????? | | ??????????????#" ??????#?? #????????????????? | | ?????????????? ?????????? #????????????????? | | ?????????????? $ ???????????? ????????????????? | | ?????????????#"??????????????#????????????????? | | ??????????????????????????????????????????????? | | ??????????????????????????????????????????????? | | ??????????????????????????????????????????????? | | ??????????????????????????????????????????????? | | ??????????????????????????????????????????????? | | ??????????????????????????????????????????????? | | ??????????????????????????????????????????????? | | ??????????????????????????????????????????????? | | ??????????????????????????????????????????????? | +----------------------------------------------------+ Best States ------------- Heat Dissipation 25 Energy Generation 10 Energy Capacity 250 Matter Stores 300 Matter Capacity 300 Sight Range 16 Terrain Scan Density 10 Evasion (%) 55 Recoil Reduction 1 Item Schematics ----------------- None Robot Schematics ------------------ None Fabricated ------------ Nothing Alien Tech Used ----------------- None Achievements -------------- Storm Trooper Challenges ------------ None Game ------ Seed CooledLightpackPerforator Manual? 0 Play Time 00:26:21 Cumulative 1.0 hours Start 2024.03.30 @ 23:15:37 End 2024.03.30 @ 23:39:58 Sessions 1 Manual Loads 0 Difficulty Rogue Special Mode None Game No. 2 Rogue 2 Adventurer 0 Explorer 0 Win Type - Total 0 Types 0/0/0/0/0/0/0/0/0 Lore% 0 Gallery% 2 Achievement% 3 Wizard Run 0 Options --------- Layout 1 ASCII 0 Keyboard 0 Movement Arrows Keybinds 0 Fullscreen 1 Font 48/Smallcaps Map View 50x35 Zoom Use 0% Tactical HUD 0 Map Filters NONE Filters NONE Steam 0 RUN: ac7cca2a-72ca-4983-9cd6-93c099882d54